fUSD/lending_fUSD_20241022
["ID","MTS","AMOUNT","RATE_DAILY","PERIOD"]
[340633243,1729560632263,-5957.7550907,0.00011,2]
[340633244,1729560632274,-45063.46960216,0.00011,2]
[340633245,1729560632285,-663.698535,0.00011,2]
[340633246,1729560632296,-2966.48754,0.00011,2]
[340633247,1729560632307,-278.60878409,0.00011,2]
[340633248,1729560632318,-541.65536624,0.00011,2]
[340633249,1729560632329,-4773.11977575,0.00011,2]
[340633250,1729560632342,-1098.10124655,0.00011,2]
[340633251,1729560632352,-688.39999162,0.00011,2]
[340633252,1729560632363,-2194.55656055,0.00011,2]
[340633253,1729560632374,-450.44936041,0.00011,2]
[340633254,1729560632385,-1467.09105785,0.00011,2]
[340633255,1729560632401,-1963.7448324,0.00011,2]
[340633256,1729560632415,-2218.35862201,0.00011,2]
[340633271,1729560638102,-13142.68775836,0.00011,2]
[340633272,1729560638113,-4346.5522944,0.00011,2]
[340633273,1729560638123,-700.77386141,0.00011,2]
[340633274,1729560638134,-111511.43491821,0.00011,2]
[340633275,1729560638145,-14510.15009,0.00011,2]
[340633276,1729560638157,-2901.32341379,0.00011,2]
[340633277,1729560638168,-1264.43557993,0.00011,2]
[340633278,1729560638283,-43297.73516799,0.00011,2]
[340633279,1729560638382,-529868.98499224,0.00011,2]
[340633280,1729560638393,-232583.47044262,0.00011,2]
[340633281,1729560638406,-2964.37016841,0.00011,2]
[340633282,1729560638417,-5555.82829994,0.00011,2]
[340633283,1729560638539,-1367.08648412,0.00011,2]
[340633284,1729560638551,-264.77000002,0.00011,2]
[340633285,1729560638562,-845.302431,0.00011,2]
[340633290,1729560639924,-794.79791123,0.00011,2]
[340633291,1729560639935,-998.486475,0.00011,2]
[340633292,1729560639946,-1707.20808955,0.00011,2]
[340633296,1729560640055,-3709.78452067,0.00011,2]
[340633297,1729560640066,-969.65529697,0.00011,2]
[340633298,1729560640077,-3151.20379492,0.00011,2]
[340633299,1729560640087,-100045.32821675,0.00011,2]
[340633300,1729560640098,-4218.43884436,0.00011,2]
[340633301,1729560640108,-397.95,0.00011,2]
[340633302,1729560640119,-6664.80077973,0.00011,2]
[340633303,1729560640130,-22721.88311488,0.00011,2]
[340633304,1729560640142,-391.951146,0.00011,2]
[340633305,1729560640185,-2127.90457717,0.00011,2]
[340633306,1729560640196,-42466.77220368,0.00011,2]
[340633307,1729560640207,-2383.28089997,0.00011,2]
[340633308,1729560640218,-1727.99999992,0.00011,2]
[340633309,1729560640229,-5059.50192414,0.00011,2]
[340633310,1729560640240,-2110.66568425,0.00011,2]
[340633311,1729560640250,-534.08997115,0.00011,2]
[340633312,1729560640343,-1587.36000001,0.00011,2]
[340633323,1729560643014,-354.726,0.00011,2]
[340633324,1729560643025,-4947.35913804,0.00011,2]
[340633325,1729560643037,-2683.64741314,0.00011,2]
[340633326,1729560643048,-1302.1840501,0.00011,2]
[340633327,1729560643146,-1372.89162855,0.00011,2]
[340633328,1729560643446,-9009.97131568,0.00011,2]
[340633329,1729560643458,-5420.415,0.00011,2]
[340633330,1729560643471,-6195.87670695,0.00011,2]
[340633331,1729560643484,-7300.0,0.00011,2]
[340633332,1729560643628,-5869.49002514,0.00011,2]
[340633333,1729560643639,-4644.54028985,0.00011,2]
[340633334,1729560643651,-359.73856219,0.00011,2]
[340633335,1729560643662,-201560.8723,0.00011,2]
[340633336,1729560643673,-6406.96811911,0.00011,2]
[340633339,1729560646095,-16277.83644564,0.00011,2]
[340633340,1729560646105,-1073.12504633,0.00011,2]
[340633341,1729560646229,-4934.2712812,0.00011,2]
[340633342,1729560646258,-21664.23750584,0.00011,2]
[340633343,1729560646282,-86747.34482173,0.00011,2]
[340633504,1729560721398,400.0,0.000105,3]
[340633505,1729560723448,800.0,0.000106,3]
[340633506,1729560725651,1300.0,0.000107,3]
[340633507,1729560727657,1700.0,0.000108,3]
[340633508,1729560729896,2100.0,0.000109,3]
[340633510,1729560784718,16350.0178007,0.000138,3]
[340633511,1729560877457,-150.90220619,0.0001089,2]
[340633512,1729560877482,-5061.70068819,0.000109,2]
[340633513,1729560877507,-1350.41664727,0.000109,2]
[340633514,1729560877529,-2484.12979574,0.000109,2]
[340633515,1729560877551,-1003.24537423,0.00010999,2]
[340633516,1729560877574,-150.0,0.00010999,2]
[340633517,1729560877597,-537.61545198,0.00010999,2]
[340633518,1729560877619,-4261.9898364,0.00011,2]
[340633519,1729560974315,213.0,0.00025,120]
[340633520,1729561064881,157.62613058,0.00025,120]
[340633521,1729561354431,-1085.663,0.0001078,2]
[340633522,1729561354452,-177.70655608,0.0001078,2]
[340633523,1729561354474,-300.0,0.00010899,2]
[340633524,1729561354495,-8436.63044392,0.000109,2]
[340633535,1729561641143,800.0,0.000105,3]
[340633536,1729561643382,1700.0,0.000106,3]
[340633537,1729561645366,2500.0,0.000107,3]
[340633538,1729561647468,3400.0,0.000108,3]
[340633539,1729561649571,4200.0,0.000109,3]
[340633552,1729561762192,-300.0,0.00010799,2]
[340633553,1729561762211,-500.0,0.000108,2]
[340633554,1729561763394,-800.0,0.000108,2]
[340633555,1729561764622,-800.0,0.000108,2]
[340633556,1729561766344,-800.0,0.000108,2]
[340633557,1729561767694,-800.0,0.000108,2]
[340633558,1729561775773,-320.0,0.000108,2]
[340633559,1729561805416,-27487.0034,0.000108,2]
[340633560,1729561805440,-182.17115135,0.000109,2]
[340633561,1729561805465,-900.27776484,0.000109,2]
[340633562,1729561805489,-150.37571902,0.000109,2]
[340633563,1729561805513,-158.86,0.00010959,2]
[340633564,1729561805537,-164.03653384,0.00010973,2]
[340633565,1729561805561,-504.44388888,0.00010973,2]
[340633566,1729561805591,-5356508.95581863,0.00011,2]
[340633567,1729561805615,-158.751892,0.00011,2]
[340633568,1729561805639,-9053.19254207,0.00011,2]
[340633570,1729561832221,-450.0,0.00011,2]
[340633571,1729561832234,-800.0,0.00011,2]
[340633579,1729561832365,-3290.66034891,0.00011,2]
[340633580,1729561832378,-1592.89895978,0.00011,2]
[340633581,1729561832390,-1974.13736734,0.00011,2]
[340633582,1729561832403,-2753.01577589,0.00011,2]
[340633587,1729561838277,-638.24848553,0.00011,2]
[340633588,1729561838290,-13013.75468089,0.00011,2]
[340633591,1729561838444,-3204.43052,0.00011,2]
[340633592,1729561838457,-944.18934277,0.00011,2]
[340633593,1729561838469,-677.06162226,0.00011,2]
[340633594,1729561838482,-208.77135456,0.00011,2]
[340633595,1729561838492,-100.02326111,0.00011869,2]
[340633596,1729561838504,-319.97673889,0.00011869,2]
[340633597,1729561838514,-14188.72321111,0.00012579,2]
[340633598,1729561838527,-661.19811011,0.00012579,2]
[340633599,1729561838539,-27135.66213262,0.00012579,2]
[340633600,1729561838550,-587.0,0.00013046,2]
[340633601,1729561838560,-2000.0,0.000138,2]
[340633602,1729561838571,-200.0,0.000138,2]
[340633603,1729561838582,-228.45,0.000138,2]
[340633604,1729561838598,-2000.0,0.00013938,2]
[340633605,1729561838608,-200.0,0.00013938,2]
[340633606,1729561838619,-499.99,0.00013938,2]
[340633607,1729561838629,-150.99,0.00013938,2]
[340633608,1729561838640,-2000.0,0.00014077,2]
[340633609,1729561838650,-200.0,0.00014077,2]
[340633610,1729561838660,-2000.0,0.00014218,2]
[340633611,1729561838670,-9999.99,0.00014218,2]
[340633612,1729561838679,-823.0,0.00014339,2]
[340633613,1729561838689,-605.0,0.0001576,2]
[340633614,1729561838700,-1149.0,0.000164,2]
[340633615,1729561838711,-488.0,0.000165,2]
[340633616,1729561838722,-172.43,0.0001762,2]
[340633617,1729561838736,-160.9,0.00018314,2]
[340633618,1729561838745,-150.375719,0.00020414,2]
[340633619,1729561838756,-220.9,0.00020778,2]
[340633620,1729561838767,-4241.99,0.00021779,2]
[340633621,1729561838777,-177.72,0.00021918,2]
[340633622,1729561838788,-250.0,0.00022025,2]
[340633623,1729561838799,-199.34,0.00022777,2]
[340633624,1729561838809,-370.82,0.00022919,2]
[340633625,1729561838819,-200.0,0.00023,2]
[340633626,1729561838830,-220.9,0.00023042,2]
[340633627,1729561838840,-180.0,0.00024392,2]
[340633628,1729561838851,-250.0,0.000245,2]
[340633629,1729561838861,-375.0,0.00024657,2]
[340633630,1729561838870,-1000.0,0.00025135,2]
[340633631,1729561838881,-220.9,0.00025305,2]
[340633632,1729561838892,-150.0,0.00025922,2]
[340633633,1729561838902,-150.0,0.00025922,2]
[340633634,1729561838913,-2622.06,0.00025922,2]
[340633635,1729561838923,-200.96740172,0.00026196,2]
[340633637,1729561838934,-150.0,0.00026196,2]
[340633639,1729561838945,-500.0,0.00026245,2]
[340633641,1729561838956,-166.65519554,0.0002647,2]
[340633643,1729561838966,-6653.5,0.00027258,2]
[340633645,1729561838976,-750.0,0.00027397,2]
[340633648,1729561838987,-160.9,0.0002747,30]
[340633650,1729561838998,-220.9,0.00027569,2]
[340633652,1729561839008,-1000.0,0.00028276,2]
[340633654,1729561839018,-158.41,0.00028963,2]
[340633656,1729561839028,-220.9,0.00029833,2]
[340633658,1729561839038,-150.375719,0.00029928,2]
[340633660,1729561839048,-1000.0,0.000301,30]
[340633662,1729561839057,-1125.0,0.00030136,2]
[340633664,1729561839067,-250.0,0.00030774,2]
[340633666,1729561839076,-23900.0,0.00030789,2]
[340633668,1729561839086,-111680.41,0.0003091,2]
[340633670,1729561839098,-500.0,0.00030973,5]
[340633672,1729561839108,-500.0,0.00031126,2]
[340633674,1729561839118,-262.81187157,0.000313,10]
[340633676,1729561839128,-802.44125185,0.000313,10]
[340633678,1729561839139,-1000.0,0.00031418,2]
[340633680,1729561839149,-175.96,0.00031594,2]
[340633682,1729561839160,-161.14,0.00031624,30]
[340633684,1729561839170,-370.82,0.00032087,2]
[340633686,1729561839180,-220.9,0.00032097,2]
[340633688,1729561839190,-568.39940653,0.00032342,5]
[340633690,1729561839201,-1500.0,0.00032876,2]
[340633693,1729561839212,-401.86432567,0.00033735,6]
[340633695,1729561839221,-1000.0,0.000342,30]
[340633697,1729561839231,-220.9,0.00034361,2]
[340633699,1729561839240,-150.0,0.00034548,10]
[340633701,1729561839250,-1000.0,0.0003456,2]
[340633702,1729561839260,-470.3633,0.00034735,30]
[340633703,1729561839270,-329.6092646,0.00034735,30]
[340633704,1729561839282,-900.27776484,0.00034745,2]
[340633705,1729561839292,-1085.663,0.00035585,42]
[340633706,1729561839302,-1131.92253918,0.00035616,2]
[340633707,1729561839313,-220.9,0.00036625,2]
[340633708,1729561839323,-180.38713944,0.000372,103]
[340633709,1729561839333,-180.38713943,0.000372,103]
[340633710,1729561839343,-180.38713943,0.000372,103]
[340633711,1729561839354,-1000.0,0.00037702,2]
[340633712,1729561839364,-3201.96504207,0.0003818,2]
[340633713,1729561839374,-861.7730205,0.000385,120]
[340633714,1729561839384,-220.9,0.00038889,2]
[340633715,1729561839396,-499.09343996,0.000389,30]
[340633716,1729561839405,-228.45,0.000389,30]
[340633717,1729561839418,-8259.84557954,0.00039,2]
[340633718,1729561839428,-150.375719,0.00039442,2]
[340633719,1729561839438,-800.0,0.000399,14]
[340633720,1729561839447,-8183.58509931,0.00039989,5]
[340633721,1729561839457,-12228.40756,0.0004,15]
[340633722,1729561839467,-220.9,0.00041153,2]
[340633723,1729561839477,-501.0,0.0004261,7]
[340633724,1729561839487,-220.9,0.00043417,2]
[340633725,1729561839498,-155.52219,0.000448,30]
[340633726,1729561839508,-247.0,0.00045,120]
[340633727,1729561839518,-77195.7875488,0.00045,10]
[340633728,1729561839738,-21090.00002,0.00045,10]
[340633729,1729561839754,-504154.4746056,0.00045,10]
[340633730,1729561839764,-155.57,0.0004559,120]
[340633731,1729561839774,-155.571,0.0004559,120]
[340633732,1729561839784,-155.571,0.0004559,120]
[340633733,1729561839795,-150.0,0.0004563,120]
[340633734,1729561839804,-220.9,0.0004568,2]
[340633735,1729561839814,-3371.741,0.00045707,2]
[340633736,1729561839823,-1917.011,0.00045707,2]
[340633737,1729561839834,-812.0,0.00045707,2]
[340633738,1729561839844,-531.101,0.00045707,2]
[340633739,1729561839854,-4057.647,0.00045707,2]
[340633740,1729561839863,-151.067,0.00045707,2]
[340633741,1729561839873,-150.0,0.000458,2]
[340633742,1729561839883,-1017.292753,0.000458,87]
[340633743,1729561839892,-356.6938,0.00046,90]
[340633744,1729561839902,-909.50537165,0.00046,120]
[340633745,1729561839911,-180.38713943,0.00046553,120]
[340633746,1729561839921,-1504.0,0.000466,2]
[340633747,1729561839930,-180.95617063,0.00046944,120]
[340633748,1729561839939,-158.41,0.00046967,2]
[340633749,1729561839949,-443.88934553,0.00047,30]
[340633750,1729561839958,-1000.0,0.00047,120]
[340633751,1729561839967,-250000.0,0.00047,120]
[340633752,1729561839976,-265.02647674,0.00047925,60]
[340633753,1729561839986,-220.9,0.00047944,2]
[340633754,1729561839995,-265.02647674,0.0004797,60]
[340633755,1729561840005,-161.14,0.0004799,120]
[340633756,1729561840015,-200.0,0.00047995,60]
[340633757,1729561840023,-2000.0,0.00048,120]
[340633758,1729561840033,-265.02647674,0.00048009,60]
[340633759,1729561840042,-150.0,0.0004801,30]
[340633760,1729561840051,-165.01391715,0.0004801,30]
[340633761,1729561840059,-150.0,0.0004801,30]
[340633762,1729561840068,-211.51847846,0.0004801,30]
[340633763,1729561840077,-5720.67796592,0.0004801,30]
[340633764,1729561840087,-200.0,0.00048036,60]
[340633765,1729561840097,-200.0,0.00048042,60]
[340633766,1729561840106,-200.0,0.00048052,60]
[340633767,1729561840115,-262.33,0.000481,7]
[340633768,1729561840125,-200.0,0.000481,60]
[340633769,1729561840134,-265.02647674,0.00048106,60]
[340633770,1729561840144,-265.02647674,0.00048115,60]
[340633771,1729561840153,-265.02647674,0.00048135,60]
[340633772,1729561840163,-188.69,0.000482,45]
[340633773,1729561840172,-209.23142899,0.00048204,90]
[340633774,1729561840182,-209.23142899,0.0004826,90]
[340633775,1729561840191,-209.23142899,0.00048264,90]
[340633776,1729561840200,-150.375719,0.00048956,28]
[340633777,1729561840210,-228.45,0.000491,60]
[340633778,1729561840219,-1504.34087632,0.000493,2]
[340633779,1729561840228,-500.0,0.00049315,120]
[340633780,1729561840237,-500.0,0.00049315,120]
[340633781,1729561840246,-500.0,0.00049315,120]
[340633782,1729561840255,-498.01613269,0.00049315,120]
[340633783,1729561840264,-150.0,0.00049564,120]
[340633785,1729561840273,-1220.49666314,0.00049564,120]
[340633786,1729561840282,-279.06873198,0.000499,60]
[340633787,1729561840291,-5746.0,0.0005,11]
[340633788,1729561840301,-220.9,0.00050208,2]
[340633789,1729561840310,-1922.0,0.000504,7]
[340633790,1729561840319,-258.38725921,0.00051589,120]
[340633791,1729561840329,-256.99025359,0.00052,120]
[340633792,1729561840338,-151.0,0.00052,120]
[340633793,1729561840348,-220.9,0.00052472,2]
[340633794,1729561840357,-203.04,0.00052502,90]
[340633795,1729561840367,-203.29,0.00052993,120]
[340633796,1729561840376,-1782.88098662,0.00053,120]
[340633797,1729561840385,-6427.73027159,0.00053,120]
[340633798,1729561840395,-28487.00811482,0.00053563,120]
[340633799,1729561840404,-29791.54,0.00054478,120]
[340633800,1729561840415,-220.9,0.00054736,2]
[340633801,1729561840427,-500.0,0.00054794,120]
[340633802,1729561840436,-500.0,0.00054794,120]
[340633803,1729561840446,-541.30614738,0.00054794,120]
[340633804,1729561840455,-362.56186458,0.00054794,120]
[340633805,1729561840466,-500.0,0.00054794,120]
[340633806,1729561840475,-511.85553947,0.00054794,120]
[340633807,1729561840484,-500.0,0.00054794,120]
[340633808,1729561840494,-1040.35,0.00054794,120]
[340633809,1729561840504,-548.06596112,0.00054794,120]
[340633810,1729561840513,-512.20453377,0.00054794,120]
[340633811,1729561840522,-503.92782892,0.00054794,120]
[340633812,1729561840531,-500.0,0.00054794,120]
[340633813,1729561840540,-500.0,0.00054794,120]
[340633814,1729561840550,-500.0,0.00054794,120]
[340633815,1729561840559,-500.0,0.00054794,120]
[340633816,1729561840568,-156.69897818,0.00054794,120]
[340633817,1729561840578,-286.22068134,0.00054794,120]
[340633818,1729561840588,-199.71140385,0.00054794,120]
[340633819,1729561840598,-200.12759572,0.00054794,120]
[340633820,1729561840608,-449.25988796,0.00054794,120]
[340633821,1729561840617,-1245.46,0.00054794,120]
[340633822,1729561840627,-680.09,0.00054794,120]
[340633823,1729561840636,-208.39952881,0.00054794,120]
[340633824,1729561840646,-500.0,0.00054794,120]
[340633825,1729561840655,-500.0,0.00054794,120]
[340633826,1729561840665,-355.22290847,0.00054794,120]
[340633827,1729561840675,-269.63106875,0.00054794,120]
[340633828,1729561840684,-216.77104533,0.00054794,120]
[340633829,1729561840694,-500.0,0.00054794,120]
[340633830,1729561840703,-341.40950048,0.00054794,120]
[340633831,1729561840713,-500.0,0.00054794,120]
[340633832,1729561840722,-182.82664801,0.00054794,120]
[340633833,1729561840732,-698.0,0.00054794,120]
[340633834,1729561840740,-247.45658567,0.00054794,120]
[340633835,1729561840749,-500.0,0.00054794,120]
[340633836,1729561840758,-500.0,0.00054794,120]
[340633837,1729561840767,-352.6182536,0.00054794,120]
[340633838,1729561840776,-500.0,0.00054795,120]
[340633839,1729561840787,-516.0,0.00054795,120]
[340633840,1729561840796,-503.0,0.00054795,120]
[340633841,1729561840806,-517.0,0.00054795,120]
[340633842,1729561840815,-697.0,0.00054795,120]
[340633843,1729561840825,-512.0,0.00054795,120]
[340633844,1729561840834,-655.59181105,0.00054923,120]
[340633845,1729561840844,-655.59181105,0.00054978,120]
[340633846,1729561840853,-655.59181105,0.00054985,120]
[340633847,1729561840863,-500.0,0.00054986,120]
[340633848,1729561840872,-500.0,0.00054986,120]
[340633849,1729561840882,-500.0,0.00054986,120]
[340633850,1729561840891,-350.30218118,0.00054986,120]
[340633851,1729561840900,-1040.35,0.00054986,120]
[340633852,1729561840909,-500.0,0.00054986,120]
[340633853,1729561840918,-500.0,0.00054986,120]
[340633854,1729561840928,-546.51841443,0.00054986,120]
[340633855,1729561840937,-500.0,0.00054986,120]
[340633856,1729561840945,-1245.46,0.00054986,120]
[340633857,1729561840955,-680.09,0.00054986,120]
[340633858,1729561840964,-500.0,0.00054986,120]
[340633859,1729561840973,-226.7572371,0.00054986,120]
[340633860,1729561840983,-157.22100221,0.00054986,120]
[340633861,1729561840992,-595.3596,0.00054986,120]
[340633862,1729561841002,-698.0,0.00054986,120]
[340633863,1729561841011,-500.0,0.00054986,120]
[340633864,1729561841020,-500.0,0.00054986,120]
[340633865,1729561841030,-2023.74503184,0.00055,120]
[340633866,1729561841039,-950.98,0.00055,120]
[340633867,1729561841049,-347.43,0.00055,120]
[340633868,1729561841058,-1704.5,0.00055,120]
[340633869,1729561841067,-500.0,0.00055178,120]
[340633870,1729561841077,-500.0,0.00055178,120]
[340633871,1729561841086,-500.0,0.00055178,120]
[340633872,1729561841098,-1040.35,0.00055178,120]
[340633873,1729561841106,-500.0,0.00055178,120]
[340633874,1729561841116,-500.0,0.00055178,120]
[340633875,1729561841125,-500.0,0.00055178,120]
[340633876,1729561841134,-1245.46,0.00055178,120]
[340633877,1729561841144,-680.09,0.00055178,120]
[340633878,1729561841153,-500.0,0.00055178,120]
[340633879,1729561841163,-698.0,0.00055178,120]
[340633880,1729561841173,-500.0,0.00055178,120]
[340633881,1729561841182,-601.03074957,0.00055178,120]
[340633882,1729561841191,-30543.72,0.00055322,120]
[340633883,1729561841200,-500.0,0.00055369,120]
[340633884,1729561841209,-500.0,0.00055369,120]
[340633885,1729561841219,-500.0,0.00055369,120]
[340633886,1729561841229,-1040.35,0.00055369,120]
[340633887,1729561841238,-500.0,0.00055369,120]
[340633888,1729561841248,-556.86376138,0.00055369,120]
[340633889,1729561841258,-500.0,0.00055369,120]
[340633890,1729561841267,-1245.46,0.00055369,120]
[340633891,1729561841276,-680.09,0.00055369,120]
[340633892,1729561841286,-500.0,0.00055369,120]
[340633893,1729561841295,-698.0,0.00055369,120]
[340633894,1729561841305,-500.0,0.00055369,120]
[340633895,1729561841314,-500.0,0.00055561,120]
[340633896,1729561841323,-591.06522769,0.00055561,120]
[340633897,1729561841332,-500.0,0.00055561,120]
[340633898,1729561841341,-1040.35,0.00055561,120]
[340633899,1729561841351,-500.0,0.00055561,120]
[340633900,1729561841361,-500.0,0.00055561,120]
[340633901,1729561841370,-1245.46,0.00055561,120]
[340633902,1729561841380,-680.09,0.00055561,120]
[340633903,1729561841389,-500.0,0.00055561,120]
[340633904,1729561841399,-698.0,0.00055561,120]
[340633905,1729561841408,-500.0,0.00055561,120]
[340633906,1729561841420,-500.0,0.00055753,120]
[340633907,1729561841429,-500.0,0.00055753,120]
[340633908,1729561841439,-1040.35,0.00055753,120]
[340633909,1729561841448,-500.0,0.00055753,120]
[340633910,1729561841458,-500.0,0.00055753,120]
[340633911,1729561841467,-1245.46,0.00055753,120]
[340633912,1729561841477,-680.09,0.00055753,120]
[340633913,1729561841486,-500.0,0.00055753,120]
[340633914,1729561841495,-698.0,0.00055753,120]
[340633915,1729561841505,-500.0,0.00055753,120]
[340633916,1729561841514,-453.02518086,0.00055899,120]
[340633917,1729561841523,-228.45,0.000559,60]
[340633918,1729561841532,-500.0,0.00055945,120]
[340633919,1729561841542,-500.0,0.00055945,120]
[340633920,1729561841551,-1040.35,0.00055945,120]
[340633921,1729561841560,-500.0,0.00055945,120]
[340633922,1729561841569,-295.90818243,0.00055945,120]
[340633923,1729561841578,-1245.46,0.00055945,120]
[340633924,1729561841588,-680.09,0.00055945,120]
[340633925,1729561841598,-500.0,0.00055945,120]
[340633926,1729561841608,-698.0,0.00055945,120]
[340633927,1729561841617,-500.0,0.00055945,120]
[340633928,1729561841626,-1305.0,0.00056,120]
[340633929,1729561841636,-500.0,0.00056136,120]
[340633930,1729561841645,-500.0,0.00056136,120]
[340633931,1729561841655,-1040.35,0.00056136,120]
[340633932,1729561841665,-500.0,0.00056136,120]
[340633933,1729561841675,-1245.46,0.00056136,120]
[340633934,1729561841684,-680.09,0.00056136,120]
[340633935,1729561841694,-500.0,0.00056136,120]
[340633936,1729561841703,-698.0,0.00056136,120]
[340633937,1729561841712,-500.0,0.00056136,120]
[340633938,1729561841722,-500.0,0.00056328,120]
[340633939,1729561841732,-500.0,0.00056328,120]
[340633940,1729561841741,-1040.35,0.00056328,120]
[340633941,1729561841750,-481.97793882,0.00056328,120]
[340633942,1729561841760,-1245.46,0.00056328,120]
[340633943,1729561841770,-680.09,0.00056328,120]
[340633944,1729561841779,-500.0,0.00056328,120]
[340633945,1729561841790,-698.0,0.00056328,120]
[340633946,1729561841800,-500.0,0.00056328,120]
[340633947,1729561841809,-500.0,0.0005639,120]
[340633948,1729561841819,-30368.28,0.00056391,120]
[340633949,1729561841828,-500.0,0.0005652,120]
[340633950,1729561841837,-500.0,0.0005652,120]
[340633951,1729561841847,-1040.35,0.0005652,120]
[340633952,1729561841857,-1245.46,0.0005652,120]
[340633953,1729561841866,-680.09,0.0005652,120]
[340633954,1729561841875,-500.0,0.0005652,120]
[340633955,1729561841884,-698.0,0.0005652,120]
[340633956,1729561841893,-500.0,0.0005652,120]
[340633957,1729561841902,-500.0,0.00056582,120]
[340633958,1729561841912,-500.0,0.00056712,120]
[340633959,1729561841922,-500.0,0.00056712,120]
[340633960,1729561841931,-1040.35,0.00056712,120]
[340633961,1729561841941,-1245.46,0.00056712,120]
[340633962,1729561841950,-680.09,0.00056712,120]
[340633963,1729561841959,-500.0,0.00056712,120]
[340633964,1729561841968,-698.0,0.00056712,120]
[340633965,1729561841978,-500.0,0.00056712,120]
[340633966,1729561841987,-500.0,0.00056774,120]
[340633967,1729561841997,-500.0,0.00056904,120]
[340633968,1729561842006,-500.0,0.00056904,120]
[340633969,1729561842015,-1040.35,0.00056904,120]
[340633970,1729561842025,-1245.46,0.00056904,120]
[340633971,1729561842034,-680.09,0.00056904,120]
[340633972,1729561842044,-500.0,0.00056904,120]
[340633973,1729561842053,-698.0,0.00056904,120]
[340633974,1729561842063,-500.0,0.00056904,120]
[340633975,1729561842072,-500.0,0.00056966,120]
[340633976,1729561842081,-220.9,0.00057,2]
[340633977,1729561842092,-9524.43707651,0.00057,120]
[340633978,1729561842105,-136444.79,0.00057,120]
[340633979,1729561842116,-2778.37187532,0.00057,120]
[340633980,1729561842128,-2304.50018838,0.00057,120]
[340633981,1729561842139,-2430.29208336,0.00057,120]
[340633982,1729561842150,-1777.7292,0.00057,120]
[340633983,1729561842161,-93840.53247452,0.00057,120]
[340633984,1729561842172,-787.06211324,0.00057,120]
[340633985,1729561842184,-112.28498867,0.00057,120]
[340633986,1729561842193,-500.0,0.00057095,120]
[340633987,1729561842202,-500.0,0.00057095,120]
[340633988,1729561842212,-100.8518753,0.00057095,120]
[340633989,1729561842223,-354.33584849,0.00057095,120]
[340633990,1729561842234,-585.16227621,0.00057095,120]
[340633991,1729561842244,-519.41855498,0.00057095,120]
[340633992,1729561842255,-726.04144502,0.00057095,120]
[340633993,1729561842265,-680.09,0.00057095,120]
[340633994,1729561842274,-500.0,0.00057095,120]
[340633995,1729561842283,-698.0,0.00057095,120]
[340633996,1729561842293,-500.0,0.00057095,120]
[340633997,1729561842302,-158.751892,0.000571,60]
[340633998,1729561842312,-500.0,0.00057157,120]
[340633999,1729561842321,-500.0,0.00057287,120]
[340634000,1729561842331,-32.90497836,0.00057287,120]
[340634001,1729561842345,-467.09502164,0.00057287,120]
[340634002,1729561842354,-1040.35,0.00057287,120]
[340634003,1729561842364,-1245.46,0.00057287,120]
[340634004,1729561842374,-680.09,0.00057287,120]
[340634005,1729561842383,-500.0,0.00057287,120]
[340634006,1729561842392,-86.09625798,0.00057287,120]
[340634007,1729561842404,-315.6,0.00057287,120]